bitfinex/quotes_BTCUSD_20220115
["timestamp","ask_amount","ask_price","bid_price","bid_amount"]
[1642241624321,0.11580195,43227.0,43224.0,0.25267542]
[1642241624722,0.018,43228.0,43224.0,0.25267542]
[1642241624723,6.876e-05,43226.0,43224.0,0.25267542]
[1642241625620,6.876e-05,43226.0,43224.0,0.70446413]
[1642241627222,6.876e-05,43226.0,43225.0,0.00126219]
[1642241630068,6.876e-05,43226.0,43225.0,98.976982]
[1642241632825,0.43929142,43232.0,43225.0,98.976982]
[1642241632826,0.001,43233.0,43228.0,1.35]
[1642241633222,8.595e-05,43231.0,43225.0,98.976982]
[1642241633623,0.057854,43229.0,43225.0,98.976982]
[1642241634223,0.04211017,43229.0,43225.0,98.976982]
[1642241637176,0.03211017,43229.0,43225.0,98.976982]
[1642241638181,0.018637,43230.0,43226.0,2.05836011]
[1642241638379,0.00010314,43232.0,43227.0,1.1]
[1642241638581,0.00010314,43232.0,43225.0,98.976982]
[1642241639819,0.057854,43229.0,43225.0,98.976982]
[1642241641017,0.057854,43229.0,43225.0,98.97571981]
[1642241641218,0.04812782,43229.0,43225.0,98.97571981]
[1642241641719,0.01832775,43230.0,43227.0,0.4228733]
[1642241641921,0.00010314,43232.0,43228.0,0.85]
[1642241642718,0.057854,43229.0,43228.0,0.85]
[1642241642919,0.057854,43229.0,43228.0,0.29919233]
[1642241643666,0.057854,43229.0,43227.0,0.4228733]
[1642241644370,0.15170185,43229.0,43225.0,98.97571981]
[1642241645069,0.057877,43227.0,43225.0,98.51273881]
[1642241645266,0.815753,43226.0,43225.0,98.51273881]
[1642241645468,0.115753,43226.0,43225.0,98.51273881]
[1642241645767,2.145753,43226.0,43225.0,97.1482297]
[1642241646168,2.145753,43226.0,43225.0,96.6852197]
[1642241646367,1.445753,43226.0,43225.0,96.6852197]
[1642241646821,1.265753,43226.0,43225.0,96.2222057]
[1642241647016,2.495753,43226.0,43225.0,96.2222057]
[1642241647217,2.577063,43226.0,43225.0,95.7591757]
[1642241647417,2.577063,43226.0,43225.0,95.7145757]
[1642241647818,2.593063,43226.0,43225.0,95.2515487]
[1642241648019,1.543063,43226.0,43225.0,95.2515487]
[1642241648222,0.131753,43226.0,43225.0,95.2515487]
[1642241648822,0.016,43226.0,43225.0,95.2515487]
[1642241649223,0.057873,43228.0,43225.0,95.67904149]
[1642241650024,0.23,43226.0,43225.0,95.67904149]
[1642241650225,0.11571,43230.0,43226.0,2.05]
[1642241650425,0.00010314,43232.0,43227.0,1.35]
[1642241651374,0.00010314,43232.0,43231.0,1.66253175]
[1642241651575,0.11153191,43240.0,43232.0,1.35]
[1642241651771,0.02529091,43240.0,43233.0,0.34628671]
[1642241651970,0.02529091,43240.0,43232.0,1.35]
[1642241651971,6.876e-05,43236.0,43232.0,1.35]
[1642241652972,0.057847,43234.0,43233.0,0.44213529]
[1642241653175,6.876e-05,43236.0,43234.0,1.2]
[1642241654521,0.057844,43235.0,43233.0,0.44213529]
[1642241657323,0.01029091,43240.0,43235.0,1.95]
[1642241657525,0.00623465,43247.0,43233.0,0.44213529]
[1642241657526,0.0002104,43244.0,43237.0,1.7]
[1642241657723,0.013,43243.0,43237.0,1.7]
[1642241657922,6.876e-05,43240.0,43237.0,1.7]
[1642241658172,6.876e-05,43240.0,43239.0,1.65]
[1642241658767,0.23006876,43240.0,43238.0,0.05783134]
[1642241659169,0.23006876,43240.0,43239.0,1.00163047]
[1642241659170,0.23018876,43240.0,43239.0,1.00163047]
[1642241659569,0.23030876,43240.0,43239.0,0.00163047]
[1642241659770,0.23030876,43240.0,43239.0,0.45163047]
[1642241659971,0.23030876,43240.0,43239.0,0.00163047]
[1642241660270,0.00030876,43240.0,43239.0,0.00163047]
[1642241660670,0.00030876,43240.0,43239.0,0.60163047]
[1642241661471,0.00030876,43240.0,43239.0,0.00163047]
[1642241661669,0.00030876,43240.0,43239.0,0.65163047]
[1642241661921,0.00030876,43240.0,43239.0,0.00163047]
[1642241661922,0.00072861,43240.0,43239.0,0.00163047]
[1642241662519,0.05856761,43240.0,43239.0,0.00163047]
[1642241662720,0.05856761,43240.0,43239.0,1.25163047]
[1642241663019,0.04689396,43240.0,43239.0,1.25163047]
[1642241663419,0.04689396,43240.0,43239.0,0.00163047]
[1642241664221,0.04689396,43240.0,43237.0,95.25317917]
[1642241665024,0.04017118,43240.0,43237.0,95.25317917]
[1642241668675,0.0002104,43244.0,43239.0,1.1]
[1642241668975,0.0002104,43244.0,43240.0,0.45143021]
[1642241669177,0.115683,43241.0,43240.0,0.45143021]
[1642241669418,0.05652337,43242.0,43241.0,0.85]
[1642241669621,0.05652337,43242.0,43241.0,1.65]
[1642241669819,0.0002104,43244.0,43242.0,0.26344588]
[1642241670219,0.0580414,43244.0,43241.0,0.85]
[1642241670820,0.0580414,43244.0,43240.0,0.45143021]
[1642241671218,0.0580414,43244.0,43241.0,0.28976591]
[1642241672519,0.0580414,43244.0,43241.0,0.24496591]
[1642241672719,0.0580414,43244.0,43240.0,0.45143021]
[1642241673772,0.0580414,43244.0,43240.0,0.76588683]
[1642241674171,0.0580414,43244.0,43242.0,0.00162518]
[1642241679330,0.0580414,43244.0,43241.0,0.25606323]
[1642241680331,0.05756704,43244.0,43241.0,0.25606323]
[1642241681175,0.05756704,43244.0,43240.0,0.42700913]
[1642241682074,0.05756704,43244.0,43241.0,0.24651647]
[1642241682273,0.05756704,43244.0,43240.0,0.42700913]
[1642241684317,0.05756704,43244.0,43242.0,0.00162518]
[1642241684519,0.0280178,43244.0,43242.0,0.00162518]
[1642241684823,0.0280178,43244.0,43242.0,95.25317388]
[1642241689774,0.0280178,43244.0,43242.0,95.57146145]
[1642241690173,0.009265,43246.0,43242.0,95.57146145]
[1642241690478,8.595e-05,43245.0,43242.0,95.57146145]
[1642241690874,6.876e-05,43244.0,43242.0,95.57146145]
[1642241691274,6.876e-05,43244.0,43242.0,95.25317388]
[1642241692322,6.876e-05,43244.0,43243.0,1.51383498]
[1642241693724,6.876e-05,43244.0,43243.0,0.31383498]
[1642241694123,6.876e-05,43244.0,43243.0,0.31545839]
[1642241694323,6.876e-05,43244.0,43243.0,0.96545839]
[1642241694824,6.876e-05,43244.0,43243.0,0.31545839]
[1642241695325,6.876e-05,43244.0,43243.0,0.71545839]
[1642241695975,6.876e-05,43244.0,43243.0,0.31545839]
[1642241696376,6.876e-05,43244.0,43243.0,1.71545839]
[1642241697275,6.876e-05,43244.0,43243.0,1.40162341]
[1642241697476,6.876e-05,43244.0,43243.0,0.00162341]
[1642241698279,0.009265,43246.0,43244.0,1.93900705]
[1642241698880,0.067093,43246.0,43244.0,1.93900705]
[1642241699324,0.067093,43246.0,43244.0,0.33900705]
[1642241700528,0.067093,43246.0,43243.0,0.00162341]
[1642241700731,0.09240845,43245.0,43243.0,0.00162341]
[1642241701934,0.0914701,43244.0,43242.0,95.5515487]
[1642241702131,0.057848,43244.0,43242.0,95.5515487]
[1642241702731,0.057848,43244.0,43242.0,95.5060487]
[1642241703673,0.057848,43244.0,43243.0,0.36120156]
[1642241704074,0.009265,43246.0,43243.0,0.70606763]
[1642241704674,0.009265,43246.0,43243.0,0.36246291]
[1642241705073,0.009265,43246.0,43243.0,0.68794372]
[1642241705273,0.009265,43246.0,43243.0,1.36246291]
[1642241705574,0.009265,43246.0,43243.0,1.69699059]
[1642241705777,0.009265,43246.0,43243.0,1.36246291]
[1642241706824,0.057828,43245.0,43243.0,1.36246291]
[1642241707227,0.009265,43246.0,43244.0,1.46626728]
[1642241707627,0.009265,43246.0,43245.0,2.22926314]
[1642241707824,0.009265,43246.0,43245.0,2.23056282]
[1642241708529,0.009265,43246.0,43245.0,2.92428282]
[1642241709327,0.00797326,43267.0,43246.0,2.12]
[1642241709528,0.2795,43265.0,43254.0,0.00123205]
[1642241709726,0.2695,43265.0,43254.0,0.00123205]
[1642241710126,0.057815,43264.0,43254.0,0.00123205]
[1642241710329,0.057815,43264.0,43258.0,0.35771348]
[1642241710578,0.00032661,43263.0,43258.0,0.35771348]
[1642241710779,0.00032661,43263.0,43258.0,0.33771348]
[1642241710977,0.00030942,43262.0,43258.0,0.33771348]
[1642241711378,0.05810523,43261.0,43258.0,0.33771348]
[1642241711779,0.00027504,43260.0,43254.0,0.00123205]
[1642241712177,0.00025785,43259.0,43254.0,0.00123205]
[1642241712578,0.05805366,43258.0,43254.0,0.00123205]
[1642241712779,0.05805366,43258.0,43254.0,3.205e-05]
[1642241712979,0.00022347,43257.0,43254.0,0.00123958]
[1642241713378,0.00020628,43256.0,43254.0,0.00123958]
[1642241713580,0.05802828,43256.0,43254.0,0.00123958]
[1642241713782,0.00018909,43255.0,43254.0,0.00123958]
[1642241714426,0.02774041,43255.0,43254.0,0.00123958]
[1642241714627,0.05529173,43255.0,43254.0,0.00123958]
[1642241714826,0.05029173,43255.0,43254.0,0.00123958]
[1642241715228,0.36665108,43255.0,43254.0,0.00123958]
[1642241715628,0.46054144,43255.0,43254.0,0.00123958]
[1642241715828,0.45880277,43255.0,43245.0,1.74445423]
[1642241716028,0.057821,43251.0,43245.0,1.74445423]
[1642241716227,0.057821,43251.0,43249.0,0.00127152]
[1642241716628,0.057821,43251.0,43250.0,0.90008595]
[1642241716829,0.26593273,43255.0,43250.0,0.90008595]
[1642241717028,0.20810673,43255.0,43250.0,1.21759097]
[1642241717229,0.20810673,43255.0,43251.0,6.876e-05]
[1642241718075,0.10810673,43255.0,43251.0,6.876e-05]
[1642241718477,0.10810673,43255.0,43253.0,0.35063405]
[1642241718676,0.05029173,43255.0,43253.0,0.35063405]
[1642241718878,0.05029173,43255.0,43254.0,0.00122733]
[1642241719376,0.05029173,43255.0,43251.0,6.876e-05]
[1642241719575,0.016,43257.0,43251.0,6.876e-05]
[1642241719775,0.08055941,43253.0,43251.0,6.876e-05]
[1642241719975,0.08055941,43253.0,43250.0,8.595e-05]
[1642241720177,0.08055941,43253.0,43252.0,0.29266356]
[1642241720579,0.08055941,43253.0,43250.0,8.595e-05]
[1642241722929,0.08055941,43253.0,43247.0,1.35239181]
[1642241723328,0.1,43259.0,43248.0,1.3]
[1642241723526,0.30739733,43260.0,43248.0,1.3]
[1642241723727,0.00013752,43258.0,43248.0,1.3]
[1642241723927,0.057819,43253.0,43247.0,1.35367261]
[1642241724827,0.057819,43253.0,43247.0,0.39217261]
[1642241726075,0.057819,43253.0,43251.0,0.30916186]
[1642241727075,0.057819,43253.0,43248.0,0.05781993]
[1642241727276,0.057819,43253.0,43247.0,0.39217261]
[1642241727677,1.91872571,43268.0,43267.0,6.22816413]
[1642241727876,1.9648393,43268.0,43267.0,6.22816413]
[1642241728076,3.55282354,43268.0,43267.0,6.22816413]
[1642241728275,2.55282354,43268.0,43267.0,5.76557413]
[1642241728477,0.90208554,43268.0,43267.0,5.76557413]
[1642241728676,0.33158654,43268.0,43267.0,5.76557413]
[1642241728877,1.53158654,43268.0,43267.0,5.30299713]
[1642241729324,1.63158654,43268.0,43267.0,4.84044113]
[1642241729732,1.63158654,43268.0,43267.0,4.37788913]
[1642241729926,1.64758654,43268.0,43267.0,4.37788913]
[1642241730328,1.64758654,43268.0,43267.0,3.91534413]
[1642241730925,1.64758654,43268.0,43267.0,3.45277313]
[1642241731125,0.44758654,43268.0,43267.0,3.45277313]
[1642241731329,0.43158654,43268.0,43267.0,3.45277313]
[1642241731926,1.19858654,43268.0,43267.0,2.99023213]
[1642241732326,1.19858654,43268.0,43267.0,2.52765913]
[1642241732327,1.84858654,43268.0,43267.0,2.52765913]
[1642241732728,2.13931354,43268.0,43267.0,2.52765913]
[1642241732929,2.13931354,43268.0,43267.0,2.01528013]
[1642241733197,1.47231354,43268.0,43267.0,2.01528013]
[1642241733597,1.47231354,43268.0,43267.0,1.55270113]
[1642241733797,1.37231354,43268.0,43267.0,1.55270113]
[1642241733997,1.48931354,43268.0,43267.0,1.55270113]
[1642241734197,1.48931354,43268.0,43267.0,1.09011913]
[1642241734498,0.73931354,43268.0,43267.0,1.09011913]
[1642241734701,1.68931354,43268.0,43267.0,0.62756213]
[1642241734898,0.73931354,43268.0,43267.0,0.62756213]
[1642241735097,0.73943354,43268.0,43267.0,0.62756213]
[1642241735298,1.17243354,43268.0,43267.0,0.16502013]
[1642241735899,0.33859506,43259.0,43256.0,0.00122256]
[1642241736098,0.33859506,43259.0,43249.0,0.8629]
[1642241736099,0.057822,43258.0,43249.0,0.8629]
[1642241736303,0.057822,43258.0,43249.0,0.57078002]
[1642241736501,0.057822,43258.0,43250.0,0.00012033]
[1642241736934,1.095472,43265.0,43264.0,93.45241054]
[1642241737130,0.24854555,43265.0,43264.0,93.45241054]
[1642241737334,1.20219255,43265.0,43264.0,93.45241054]
[1642241737531,1.20219255,43265.0,43264.0,92.98980854]
[1642241737532,1.26219255,43265.0,43264.0,92.98980854]
[1642241737931,1.27919255,43265.0,43264.0,92.94520854]
[1642241738130,1.17919255,43265.0,43264.0,92.48260154]
[1642241738330,1.03643046,43265.0,43264.0,92.48260154]
[1642241738533,1.03643046,43265.0,43264.0,92.02002454]
[1642241739031,1.03643046,43265.0,43264.0,91.55743554]
[1642241739230,1.01943046,43265.0,43264.0,91.55743554]
[1642241739631,2.61697446,43265.0,43264.0,91.09484054]
[1642241740032,1.03643046,43265.0,43264.0,90.63223754]
[1642241740233,0.84459346,43265.0,43264.0,90.63223754]
[1642241740677,0.796635,43265.0,43264.0,90.16964454]
[1642241740877,1.954502,43265.0,43264.0,90.16964454]
[1642241741076,1.99133039,43265.0,43264.0,89.70702054]
[1642241741283,1.97433039,43265.0,43264.0,89.70702054]
[1642241741682,1.97433039,43265.0,43264.0,89.24440854]
[1642241741878,3.20433039,43265.0,43264.0,89.24440854]
[1642241742077,3.22133039,43265.0,43264.0,89.24440854]
[1642241742279,3.35948239,43265.0,43264.0,88.78179354]
[1642241742480,2.35948239,43265.0,43264.0,88.78179354]
[1642241742677,2.35948239,43265.0,43264.0,88.31917754]
[1642241742877,2.35948239,43265.0,43264.0,88.27457754]
[1642241743277,2.34248239,43265.0,43264.0,87.81195754]
[1642241743479,3.14248239,43265.0,43264.0,87.81195754]
[1642241743678,3.14248239,43265.0,43264.0,87.81115214]
[1642241743878,1.87308239,43265.0,43264.0,87.34850814]
[1642241744078,1.04034339,43265.0,43264.0,87.34850814]
[1642241744330,3.25171439,43265.0,43264.0,86.88589414]
[1642241744731,2.02171439,43265.0,43264.0,86.42325514]
[1642241744931,0.71552439,43265.0,43264.0,86.42325514]
[1642241745136,0.275105,43265.0,43264.0,86.42325514]
[1642241745333,0.275225,43265.0,43264.0,85.96066814]
[1642241745834,0.258225,43265.0,43264.0,85.96066814]
[1642241746033,2.66756776,43265.0,43264.0,85.49807914]
[1642241746234,3.186268,43265.0,43264.0,85.49807914]
[1642241746433,3.186268,43265.0,43264.0,85.03541914]
[1642241746434,4.416268,43265.0,43264.0,85.03541914]
[1642241746633,4.516268,43265.0,43264.0,85.03541914]
[1642241746836,4.416268,43265.0,43264.0,85.03541914]
[1642241747035,4.717667,43265.0,43264.0,84.57273514]
[1642241747235,3.210667,43265.0,43264.0,84.57273514]
[1642241747435,3.110667,43265.0,43264.0,84.57273514]
[1642241747639,3.610667,43265.0,43264.0,84.11006714]
[1642241747836,3.610667,43265.0,43264.0,84.06546714]
[1642241748076,4.20393,43265.0,43264.0,84.06546714]
[1642241748279,4.20393,43265.0,43264.0,83.60280814]
[1642241748476,3.79893,43265.0,43264.0,83.60280814]
[1642241748677,2.915039,43265.0,43264.0,83.14017914]
[1642241748876,2.9271192,43265.0,43264.0,83.14017914]
[1642241749276,2.493039,43265.0,43264.0,82.67756714]
[1642241749677,4.333039,43265.0,43264.0,82.67756714]
[1642241749878,2.613039,43265.0,43264.0,82.21494114]
[1642241750078,2.428039,43265.0,43264.0,82.21494114]
[1642241750284,2.134488,43265.0,43264.0,82.21494114]
[1642241750478,2.134488,43265.0,43264.0,81.75234714]
[1642241751281,2.117488,43265.0,43264.0,81.75234714]
[1642241751480,2.117488,43265.0,43264.0,81.28974314]
[1642241751680,3.466101,43265.0,43264.0,81.28974314]
[1642241751933,2.823101,43265.0,43264.0,80.82714114]
[1642241752335,4.215101,43265.0,43264.0,80.82714114]
[1642241752533,4.215101,43265.0,43264.0,80.36449814]
[1642241752735,4.620101,43265.0,43264.0,80.36449814]
[1642241752937,4.620101,43265.0,43264.0,80.31949814]
[1642241753135,4.789672,43265.0,43264.0,79.85684114]
[1642241753335,5.276718,43265.0,43264.0,79.85684114]
[1642241753535,4.871718,43265.0,43264.0,79.39417914]
[1642241753736,1.949347,43265.0,43264.0,79.39417914]
[1642241753937,1.634488,43265.0,43264.0,79.39417914]
[1642241754136,1.634488,43265.0,43264.0,78.93155514]
[1642241754435,2.168992,43265.0,43264.0,78.93155514]
[1642241754636,1.864488,43265.0,43264.0,78.93155514]
[1642241754836,2.56543,43265.0,43264.0,78.46894214]
[1642241755037,2.97243,43265.0,43264.0,78.46894214]
[1642241755336,2.97243,43265.0,43264.0,78.00633614]
[1642241755337,3.875094,43265.0,43264.0,78.00633614]
[1642241755581,3.470094,43265.0,43264.0,78.00633614]
[1642241755778,3.470094,43265.0,43264.0,77.54370414]
[1642241755979,2.364488,43265.0,43264.0,77.54370414]
[1642241756179,2.04827145,43265.0,43264.0,77.54370414]
[1642241756382,2.05428031,43265.0,43264.0,77.54370414]
[1642241756579,2.05428031,43265.0,43264.0,77.08109914]
[1642241756780,3.16216031,43265.0,43264.0,77.08109914]
[1642241756980,2.75716031,43265.0,43264.0,76.61846314]
[1642241757380,1.53728031,43265.0,43264.0,76.61846314]
[1642241757781,3.1765646,43265.0,43264.0,76.15586114]
[1642241757980,3.4356876,43265.0,43264.0,76.11126114]
[1642241758183,3.4356876,43265.0,43264.0,75.64864614]
[1642241758381,4.2566876,43265.0,43264.0,75.64864614]
[1642241758780,1.79740331,43265.0,43264.0,75.18600314]
[1642241758981,1.54601731,43265.0,43264.0,75.18600314]
[1642241759426,1.48849486,43265.0,43264.0,75.18600314]
[1642241759827,1.52573742,43265.0,43264.0,74.72340114]
[1642241760028,1.54373742,43265.0,43264.0,74.72340114]
[1642241760229,1.95118356,43265.0,43264.0,74.72340114]
[1642241760429,1.54373742,43265.0,43264.0,74.26079614]
[1642241760628,1.81518742,43265.0,43264.0,74.26079614]
[1642241761029,1.97718742,43265.0,43264.0,73.79819214]
[1642241761429,1.80527542,43265.0,43264.0,73.79819214]
[1642241762032,2.23623429,43265.0,43264.0,73.33558614]
[1642241762232,3.30374229,43265.0,43264.0,73.33558614]
[1642241762432,3.30374229,43265.0,43264.0,72.87296014]
[1642241762832,1.81518742,43265.0,43264.0,72.82836014]
[1642241763079,1.81519842,43265.0,43264.0,72.36574514]
[1642241763385,0.34695598,43270.0,43264.0,72.36574514]
[1642241763386,0.4269,43274.0,43265.0,0.00123036]
[1642241763581,0.5,43273.0,43265.0,0.48288816]
[1642241763779,0.5,43273.0,43265.0,0.00123036]
[1642241763780,0.00015471,43266.0,43265.0,0.00123036]
[1642241764178,0.22876964,43265.0,43264.0,72.36574514]
[1642241764378,0.21084458,43278.0,43266.0,2.1]
[1642241764579,0.5,43274.0,43273.0,0.00128823]
[1642241764979,0.057795,43274.0,43273.0,0.00128823]
[1642241765779,0.00227974,43279.0,43275.0,0.00125933]
[1642241766177,0.0001719,43276.0,43275.0,0.00125933]
[1642241767832,0.001,43281.0,43279.0,0.00127867]
[1642241768232,6.876e-05,43281.0,43279.0,0.00127867]
[1642241768431,0.001,43284.0,43283.0,0.00122488]
[1642241768633,0.00180002,43284.0,43283.0,0.00122488]
[1642241768832,0.00186878,43284.0,43283.0,0.00122488]
[1642241769030,0.36577595,43285.0,43284.0,0.00127288]
[1642241769231,0.31577595,43285.0,43284.0,0.00127288]
[1642241769434,1.08816075,43285.0,43268.0,0.69921095]
[1642241769632,1.08816075,43285.0,43277.0,0.00123194]
[1642241769633,0.115581,43283.0,43277.0,0.00123194]
[1642241770034,0.115581,43283.0,43278.0,0.00010314]
[1642241770697,0.057791,43282.0,43278.0,0.00010314]
[1642241771301,0.1,43279.0,43278.0,0.00010314]
[1642241771698,0.157789,43279.0,43278.0,0.00010314]
[1642241771897,0.157789,43279.0,43278.0,72.36584828]
[1642241772498,0.157789,43279.0,43278.0,72.36712441]
[1642241772998,0.157789,43279.0,43278.0,72.32252441]
[1642241773200,0.17184,43280.0,43279.0,2.1]
[1642241773400,0.007257,43286.0,43280.0,2.1]
[1642241773607,0.001,43301.0,43280.0,2.1]
[1642241773608,0.12904873,43304.0,43285.0,0.00129368]
[1642241773805,0.00790286,43310.0,43293.0,0.00436042]
[1642241774001,0.00027966,43316.0,43304.0,0.00127516]
[1642241774199,0.01109091,43329.0,43314.0,0.1]
[1642241774200,0.38864801,43328.0,43314.0,0.1]
[1642241774444,0.01109091,43329.0,43315.0,1.07011042]
[1642241774643,0.00068761,43318.0,43315.0,1.07011042]
[1642241774845,0.057738,43317.0,43315.0,1.43516338]
[1642241775043,0.05840842,43317.0,43305.0,0.46197934]
[1642241775243,0.00065323,43316.0,43310.0,0.00126302]
[1642241775442,0.00579824,43321.0,43315.0,0.00124445]
[1642241775443,0.42852387,43321.0,43315.0,0.00124445]
[1642241775844,0.290727,43317.0,43312.0,0.11545897]
[1642241776142,6.876e-05,43320.0,43311.0,8.595e-05]
[1642241776143,0.290727,43313.0,43311.0,8.595e-05]
[1642241776345,6.876e-05,43320.0,43311.0,8.595e-05]
[1642241776544,0.2478363,43314.0,43306.0,0.0001719]
[1642241776745,6.876e-05,43320.0,43313.0,0.00121258]
[1642241776947,6.876e-05,43320.0,43306.0,0.0001719]
[1642241777346,6.876e-05,43320.0,43304.0,0.00124844]
[1642241777347,6.876e-05,43320.0,43305.0,0.5]
[1642241777547,0.50198702,43326.0,43306.0,0.9128]
[1642241777745,0.31430865,43314.0,43311.0,0.00125638]
[1642241777947,0.51004721,43313.0,43307.0,0.00022347]
[1642241778207,0.51004721,43313.0,43312.0,0.00013752]
[1642241778403,0.51004721,43313.0,43303.0,0.00126365]
[1642241778404,1.7,43312.0,43303.0,0.00126365]
[1642241778604,1.7,43312.0,43262.0,1.154913]
[1642241778605,0.290727,43308.0,43294.0,0.00125894]
[1642241778804,0.1,43295.0,43289.0,0.9848]
[1642241779009,0.1,43295.0,43291.0,0.0005351]
[1642241779010,0.057765,43294.0,43291.0,0.0005351]
[1642241779403,0.057765,43294.0,43292.0,0.00025785]
[1642241779805,1.99330761,43320.0,43319.0,62.31854244]
[1642241780004,1.03870761,43320.0,43319.0,60.22032018]
[1642241780204,4.08490061,43320.0,43319.0,57.50862347]
[1642241780404,9.76881826,43320.0,43319.0,55.39285447]
[1642241780604,6.39488726,43320.0,43319.0,48.91838386]
[1642241780806,6.28946126,43320.0,43319.0,46.36938386]
[1642241781005,7.13988026,43320.0,43319.0,45.90726386]
[1642241781207,7.18038926,43320.0,43319.0,45.90726386]
[1642241781406,7.33038926,43320.0,43319.0,45.90726386]
[1642241781608,7.66248526,43320.0,43319.0,45.44515186]
[1642241781830,7.39278926,43320.0,43319.0,45.44515186]
[1642241782033,5.63476926,43320.0,43319.0,44.98301186]
[1642241782230,2.79728126,43320.0,43319.0,44.98301186]
[1642241782430,3.35590826,43320.0,43319.0,44.98301186]
[1642241782631,2.84076826,43320.0,43319.0,44.52089786]
[1642241782830,1.92543326,43320.0,43319.0,44.50884722]
[1642241783030,2.55968926,43320.0,43319.0,44.46414722]
[1642241783232,2.54652726,43320.0,43319.0,44.00203522]
[1642241783432,2.29108326,43320.0,43319.0,44.00203522]
[1642241783633,2.41480765,43320.0,43319.0,43.53992922]
[1642241783835,3.39687165,43320.0,43319.0,43.53992922]
[1642241784135,4.17389665,43320.0,43319.0,43.07777822]
[1642241784333,4.27389665,43320.0,43319.0,41.90223622]
[1642241784535,5.05790765,43320.0,43319.0,41.05423622]
[1642241784734,3.71237165,43320.0,43319.0,39.69543188]
[1642241784936,3.12627165,43320.0,43319.0,39.69543188]
[1642241785135,3.67476465,43320.0,43319.0,39.69543188]
[1642241785334,3.25177165,43320.0,43319.0,39.23330088]
[1642241785593,4.36636165,43320.0,43319.0,38.65564688]
[1642241785794,3.86973565,43320.0,43319.0,38.19344788]
[1642241785995,4.36357565,43320.0,43319.0,38.19344788]
[1642241786195,4.85542665,43320.0,43319.0,38.19344788]
[1642241786392,5.01749368,43320.0,43319.0,37.73128388]
[1642241786593,4.51959368,43320.0,43319.0,37.6614566]
[1642241786796,4.39511568,43320.0,43319.0,37.1992916]
[1642241786993,4.27771368,43320.0,43319.0,37.1992916]
[1642241787193,5.50674668,43320.0,43319.0,37.1992916]
[1642241787393,5.55180968,43320.0,43319.0,36.7371176]
[1642241787594,5.41633168,43320.0,43319.0,32.38537086]
[1642241787793,6.39889368,43320.0,43319.0,32.21205586]
[1642241787995,6.96682968,43320.0,43319.0,26.09090218]
[1642241788197,7.74163868,43320.0,43319.0,25.35262816]
[1642241788394,7.74163868,43320.0,43319.0,24.52254242]
[1642241788395,10.89505668,43320.0,43319.0,24.52254242]
[1642241788595,9.72765168,43320.0,43319.0,23.55779496]
[1642241788793,9.45655368,43320.0,43319.0,23.52812499]
[1642241788995,9.43641829,43320.0,43319.0,22.92428613]
[1642241789195,9.43641829,43320.0,43319.0,21.82637587]
[1642241789196,9.04982829,43320.0,43319.0,21.82637587]
[1642241789437,9.04982829,43320.0,43319.0,21.36412287]
[1642241789438,8.80935229,43320.0,43319.0,21.36412287]
[1642241789634,7.27390529,43320.0,43319.0,20.90186887]
[1642241789837,7.88674829,43320.0,43319.0,20.5546279]
[1642241790035,7.34176229,43320.0,43319.0,19.9189999]
[1642241790236,8.95300929,43320.0,43319.0,18.90351873]
[1642241790436,8.70713429,43320.0,43319.0,18.18015073]
[1642241790635,9.97827529,43320.0,43319.0,17.20555773]
[1642241790835,10.10999129,43320.0,43319.0,17.15555773]
[1642241791037,10.17005129,43320.0,43319.0,15.91501978]
[1642241791239,10.88367473,43320.0,43319.0,14.29105877]
[1642241791536,10.63742273,43320.0,43319.0,13.28875877]
[1642241791737,10.63742273,43320.0,43319.0,12.65309177]
[1642241791938,11.53543673,43320.0,43319.0,12.65309177]
[1642241792136,11.53544973,43320.0,43319.0,12.19082377]
[1642241792338,11.69300073,43320.0,43319.0,12.01744977]
[1642241792536,14.51036473,43320.0,43319.0,12.01744977]
[1642241792736,14.51036473,43320.0,43319.0,7.82297412]
[1642241792937,14.51036473,43320.0,43319.0,4.35369142]
[1642241792938,14.65827473,43320.0,43319.0,4.35369142]
[1642241793184,14.77387473,43320.0,43319.0,1.37418047]
[1642241793384,14.97387473,43320.0,43319.0,0.50696279]
[1642241793584,14.85587473,43320.0,43319.0,0.50696279]
[1642241793784,14.95587473,43320.0,43319.0,0.04469179]
[1642241793984,1.23,43318.0,43291.0,0.07161876]
[1642241794185,1.23,43318.0,43291.0,0.07291369]
[1642241794186,0.12659976,43295.0,43291.0,0.07291369]
[1642241794491,0.12159976,43295.0,43291.0,0.07161876]
[1642241794685,0.1790187,43296.0,43294.0,0.44531704]
[1642241794887,0.01339664,43297.0,43295.0,1.73302804]
[1642241795284,0.01339664,43297.0,43291.0,0.00177367]
[1642241795285,0.11561276,43296.0,43291.0,0.00177367]
[1642241795884,0.50575402,43296.0,43291.0,0.00177367]
[1642241796084,0.11561276,43296.0,43291.0,0.0005351]
[1642241796286,0.11561276,43296.0,43291.0,0.26965316]
[1642241797838,0.49181627,43296.0,43291.0,0.26965316]
[1642241798136,0.49181627,43296.0,43288.0,0.00125535]
[1642241798537,0.48960191,43296.0,43288.0,0.00125535]
[1642241798736,0.49027133,43296.0,43288.0,0.00125535]
[1642241798938,0.49241192,43296.0,43288.0,0.00125535]
[1642241799136,0.11561276,43296.0,43288.0,0.00125535]
[1642241799339,0.11561276,43296.0,43292.0,0.24844876]
[1642241799939,0.2001,43294.0,43292.0,0.24844876]
[1642241800139,0.057775,43293.0,43292.0,1.64844876]
[1642241801386,0.057775,43293.0,43292.0,1.64966952]
[1642241802183,0.057775,43293.0,43292.0,1.40122076]
[1642241803184,0.057775,43293.0,43292.0,1.35652076]
[1642241804184,0.057775,43293.0,43292.0,1.65652076]
[1642241804836,1.276e-05,43296.0,43293.0,2.55777]
[1642241805041,1.276e-05,43296.0,43295.0,0.00121022]
[1642241806036,1.276e-05,43296.0,43295.0,0.00123179]
[1642241806236,1.276e-05,43296.0,43295.0,0.29989328]
[1642241806438,0.118,43302.0,43295.0,0.00124833]
[1642241806636,0.018,43302.0,43299.0,0.36865034]
[1642241806836,8.595e-05,43301.0,43299.0,0.36865034]
[1642241807036,8.595e-05,43301.0,43299.0,0.31666846]
[1642241807236,6.876e-05,43300.0,43299.0,0.31666846]
[1642241807937,0.05782476,43300.0,43299.0,0.43217782]
[1642241808184,0.05782476,43300.0,43299.0,2.1]
[1642241810585,1.05782476,43300.0,43299.0,2.1]
[1642241812036,1.07482476,43300.0,43299.0,2.1]
[1642241812841,1.07482476,43300.0,43299.0,2.09859949]
[1642241813242,1.07482476,43300.0,43299.0,2.05379949]
[1642241813839,1.05782476,43300.0,43299.0,2.05379949]
[1642241814039,1.07482476,43300.0,43299.0,2.05379949]
[1642241815444,1.07482476,43300.0,43297.0,0.057768]
[1642241815686,0.290727,43298.0,43297.0,0.057768]
[1642241816688,1.07382476,43300.0,43297.0,0.057768]
[1642241817189,0.290727,43298.0,43297.0,0.057768]